fUSD/lending_fUSD_20250507
["ID","MTS","AMOUNT","RATE_DAILY","PERIOD"]
[360206673,1746623438358,-3496.25542647,0.00019843,2]
[360206674,1746623438367,-3496.25542647,0.0001985,2]
[360206675,1746623438377,-303.5260486,0.00019853,2]
[360206676,1746623438386,-3496.25542647,0.00019857,2]
[360206677,1746623438396,-3496.25542647,0.00019864,2]
[360206678,1746623438405,-303.5260486,0.00019869,2]
[360206679,1746623438415,-3496.25542647,0.00019872,2]
[360206680,1746623438425,-500.0,0.00019873,2]
[360206681,1746623438436,-500.0,0.00019873,2]
[360206682,1746623438448,-500.0,0.00019873,2]
[360206683,1746623438458,-505.279035,0.00019873,2]
[360206684,1746623438467,-500.0,0.00019873,2]
[360206685,1746623438476,-500.0,0.00019873,2]
[360206686,1746623438486,-500.0,0.00019873,2]
[360206687,1746623438496,-500.0,0.00019873,2]
[360206688,1746623438505,-501.64427826,0.00019873,2]
[360206689,1746623438515,-500.0,0.00019873,2]
[360206690,1746623438525,-500.0,0.00019873,2]
[360206691,1746623438534,-503.23488949,0.00019873,2]
[360206692,1746623438544,-504.05263074,0.00019873,2]
[360206693,1746623438553,-500.0,0.00019873,2]
[360206694,1746623438563,-500.0,0.00019873,2]
[360206695,1746623438572,-500.0,0.00019873,2]
[360206696,1746623438582,-450.0,0.00019877,2]
[360206698,1746623438591,-450.0,0.00019877,2]
[360206700,1746623438600,-164.86,0.00019877,2]
[360206701,1746623438614,-418.14,0.00019877,2]
[360206702,1746623438623,-450.0,0.00019877,2]
[360206703,1746623438633,-450.0,0.00019877,2]
[360206704,1746623438642,-450.0,0.00019877,2]
[360206705,1746623438653,-450.0,0.00019877,2]
[360206706,1746623438663,-450.0,0.00019877,2]
[360206707,1746623438672,-465.68,0.00019877,2]
[360206708,1746623438681,-450.0,0.00019877,2]
[360206709,1746623438692,-2357.6109172,0.00019879,2]
[360206711,1746623438710,-953.01018596,0.00019879,2]
[360206712,1746623438722,-185.63432331,0.00019879,2]
[360206713,1746623438731,-356.25790333,0.00019884,2]
[360206714,1746623438743,-93.74209667,0.00019884,2]
[360206715,1746623438752,-394.92220524,0.00019884,2]
[360206716,1746623438764,-176.54149401,0.00019884,2]
[360206717,1746623438773,-145.63109854,0.00019884,2]
[360206718,1746623438785,-304.36890146,0.00019884,2]
[360206719,1746623438794,-450.0,0.00019884,2]
[360206720,1746623438804,-520.14886938,0.00019884,2]
[360206721,1746623438814,-450.0,0.00019884,2]
[360206723,1746623438823,-450.0,0.00019884,2]
[360206725,1746623438833,-450.0,0.00019884,2]
[360206727,1746623438842,-3496.25542647,0.00019886,2]
[360206729,1746623438852,-3496.25542647,0.00019893,2]
[360206731,1746623438861,-3361.91444811,0.00019896,2]
[360206733,1746623438870,-3361.91444811,0.00019896,2]
[360206735,1746623438881,-3361.91444811,0.00019897,2]
[360206737,1746623438890,-154.97758502,0.00019897,2]
[360206739,1746623438899,-3361.91444811,0.00019897,2]
[360206740,1746623438908,-3361.91444811,0.00019898,2]
[360206741,1746623438918,-3361.91444811,0.00019898,2]
[360206742,1746623438927,-1400.50710254,0.00019899,2]
[360206747,1746623440653,-1961.40734557,0.00019899,2]
[360206748,1746623440663,-526.24005679,0.00019899,2]
[360206749,1746623440673,-217.82552839,0.00019899,2]
[360206750,1746623440683,-166.55221697,0.00019899,2]
[360206751,1746623440694,-328.23565333,0.00019899,2]
[360206752,1746623440706,-121.76434667,0.00019899,2]
[360206753,1746623440715,-450.0,0.00019899,2]
[360206754,1746623440725,-77.79261877,0.00019899,2]
[360206755,1746623441028,-372.20738123,0.00019899,2]
[360206756,1746623441038,-450.0,0.00019899,2]
[360206757,1746623441048,-450.0,0.00019899,2]
[360206758,1746623441057,-450.0,0.00019899,2]
[360206759,1746623441067,-3361.91444811,0.00019899,2]
[360206760,1746623441076,-3361.91444811,0.000199,2]
[360206761,1746623441085,-405.5383399,0.000199,2]
[360206762,1746623441094,-3581.61840787,0.000199,2]
[360206763,1746623441103,-194.77304098,0.000199,3]
[360206764,1746623441112,-3496.25542647,0.000199,2]
[360206765,1746623441121,-2137.5388655,0.000199,2]
[360206766,1746623441131,-6003.08417368,0.000199,2]
[360206767,1746623441141,-3361.91444811,0.000199,2]
[360206768,1746623441150,-5276.86794694,0.000199,2]
[360206799,1746623443460,-415.54440024,0.000199,2]
[360206800,1746623443470,-4440.263,0.00019901,2]
[360206801,1746623443479,-201.759,0.00019901,2]
[360206802,1746623443489,-500.0,0.00019935,2]
[360206803,1746623443498,-500.0,0.00019935,2]
[360206804,1746623443508,-500.0,0.00019935,2]
[360206805,1746623443518,-500.0,0.00019935,2]
[360206806,1746623443527,-94.43360053,0.00019935,2]
[360206807,1746623443539,-405.56639947,0.00019935,2]
[360206808,1746623443549,-571.04762546,0.00019935,2]
[360206809,1746623443558,-500.0,0.00019935,2]
[360206810,1746623443568,-500.0,0.00019935,2]
[360206811,1746623443577,-500.0,0.00019935,2]
[360206812,1746623443587,-500.0,0.00019935,2]
[360206813,1746623443596,-500.0,0.00019935,2]
[360206814,1746623443606,-500.0,0.00019935,2]
[360206815,1746623443620,-500.0,0.00019935,2]
[360206816,1746623443629,-14.77129664,0.00019935,2]
[360206824,1746623446265,-502.6993728,0.00019718,2]
[360206825,1746623446275,-485.22870336,0.00019935,2]
[360206826,1746623446286,-500.0,0.00019935,2]
[360206827,1746623446296,-500.0,0.00019935,2]
[360206828,1746623446305,-500.0,0.00019935,2]
[360206829,1746623446314,-500.0,0.00019935,2]
[360206830,1746623446323,-500.0,0.00019935,2]
[360206831,1746623446332,-119.42737845,0.00019935,2]
[360206832,1746623446518,-125.2222539,0.00019935,2]
[360206833,1746623446528,-500.0,0.00019935,2]
[360206834,1746623446539,-500.0,0.00019935,2]
[360206835,1746623446549,-305.1561035,0.00019935,2]
[360206841,1746623447443,-194.8438965,0.00019935,2]
[360206842,1746623447453,-500.0,0.00019935,2]
[360206843,1746623447463,-500.0,0.00019935,2]
[360206844,1746623447473,-500.0,0.00019935,2]
[360206845,1746623447482,-500.0,0.00019935,2]
[360206846,1746623447492,-448.24459605,0.00019935,2]
[360206847,1746623447504,-51.75540395,0.00019935,2]
[360206848,1746623447513,-500.0,0.00019935,2]
[360206849,1746623447523,-500.0,0.00019935,2]
[360206850,1746623447533,-500.0,0.00019935,2]
[360206851,1746623447543,-500.0,0.00019935,2]
[360206852,1746623447552,-500.0,0.00019935,2]
[360206853,1746623447562,-500.0,0.00019935,2]
[360206854,1746623447572,-500.0,0.00019935,2]
[360206855,1746623447582,-500.0,0.00019935,2]
[360206856,1746623447591,-600.0,0.00019935,2]
[360206857,1746623447601,-500.0,0.00019935,2]
[360206858,1746623447615,-450.0,0.00019936,2]
[360206859,1746623447625,-450.0,0.00019936,2]
[360206860,1746623447635,-162.92,0.00019936,2]
[360206861,1746623447644,-450.0,0.00019936,2]
[360206862,1746623447655,-450.0,0.00019936,2]
[360206863,1746623447665,-450.0,0.00019936,2]
[360206864,1746623447674,-450.0,0.00019936,2]
[360206865,1746623447684,-536.33296354,0.00019936,2]
[360206866,1746623447695,-326.44,0.00019936,2]
[360206867,1746623447704,-450.0,0.00019936,2]
[360206868,1746623447714,-528.07921467,0.00019936,2]
[360206869,1746623447724,-450.0,0.00019936,2]
[360206870,1746623447733,-186.108634,0.00019936,2]
[360206871,1746623447743,-2766.666667,0.00019936,2]
[360206872,1746623447753,-450.0,0.00019936,2]
[360206873,1746623447762,-450.0,0.00019936,2]
[360206874,1746623447772,-153.36087,0.00019936,2]
[360206875,1746623447781,-450.0,0.00019936,2]
[360206876,1746623447792,-450.0,0.00019936,2]
[360206877,1746623447801,-450.0,0.00019936,2]
[360206878,1746623447811,-450.0,0.00019936,2]
[360206879,1746623447821,-450.0,0.00019936,2]
[360206880,1746623447830,-450.0,0.00019936,2]
[360206881,1746623447840,-450.0,0.00019936,2]
[360206882,1746623447850,-528.76,0.00019936,2]
[360206883,1746623447860,-450.0,0.00019936,2]
[360206884,1746623447870,-184.31058406,0.00019936,2]
[360206885,1746623447888,-265.68941594,0.00019936,2]
[360206886,1746623447898,-450.0,0.00019936,2]
[360206887,1746623447908,-450.0,0.00019936,2]
[360206888,1746623447918,-450.0,0.00019936,2]
[360206889,1746623447928,-467.86107191,0.00019936,2]
[360206890,1746623447939,-500.0,0.00019936,2]
[360206891,1746623447948,-450.0,0.00019936,2]
[360206892,1746623447958,-450.0,0.00019936,2]
[360206893,1746623447968,-450.0,0.00019936,2]
[360206894,1746623447978,-450.0,0.00019936,2]
[360206895,1746623447988,-450.0,0.00019936,2]
[360206896,1746623447997,-450.0,0.00019936,2]
[360206897,1746623448007,-559.50863215,0.00019936,2]
[360206898,1746623448016,-450.0,0.00019936,2]
[360206899,1746623448026,-64.62388038,0.00019936,2]
[360206900,1746623494029,159.69,0.00018892,2]
[360206901,1746623603230,1333.0,0.00029041,120]
[360206902,1746623606830,12575.84,0.00018892,2]
[360206903,1746623754243,14479.64,0.00018892,2]
[360206904,1746623770123,166.67,0.00019459,2]
[360206905,1746623828529,169.05,0.00019178,2]
[360206907,1746623911223,150.0,0.00018986,7]
[360206908,1746623967370,1447.31,0.00018892,2]
[360206909,1746623968214,737.22,0.00016975,2]
[360206910,1746623968457,737.22,0.00019238,2]
[360206911,1746623975803,500.0,0.00018892,2]
[360206912,1746624018029,353.81554225,0.0003,30]
[360206913,1746624019464,1200.57,0.00018892,2]
[360206914,1746624037121,250.0,0.00018892,2]
[360206915,1746624123642,150.0,0.00018892,2]
[360206916,1746624124171,156.6,0.00016712,2]
[360206917,1746624193271,2445.47,0.00018892,2]
[360206918,1746624206310,169.6,0.00015114,2]
[360206919,1746624206565,169.6,0.00018892,2]
[360206920,1746624290668,1000.0,0.00018892,2]
[360206921,1746624293427,200.0,0.00018892,2]
[360206922,1746624308254,7180.671341,7.945e-05,2]
[360206923,1746624311004,5597.54999091,0.000154,2]
[360206924,1746624328937,936.19757628,0.00011,2]
[360206925,1746624337108,24166.38659372,9e-05,2]
[360206926,1746624355457,4968.30628521,6.94e-05,2]
[360206927,1746624363286,7179.63010354,8e-05,2]
[360206928,1746624367991,150.68576402,0.0003,30]
[360206929,1746624387161,996.78523461,0.00029041,120]
[360206932,1746624426794,1239.0445,0.000153,2]
[360206933,1746624430217,432.72043114,0.00015,2]
[360206934,1746624433565,2068.60878948,0.00015,2]
[360206935,1746624440161,251.48954655,0.000101,2]
[360206936,1746624442889,565.53893874,0.00018,2]
[360206937,1746624474197,4887.3267359,0.0001,2]
[360206941,1746624492330,2007.01415814,0.0001439,2]
[360206942,1746624509135,499.999999,0.000298,30]
[360206945,1746624517706,259.6679722,0.000107,2]
[360206946,1746624521838,936.53583668,0.00013368,2]
[360206959,1746624529537,1500.57,0.00018892,2]
[360206963,1746624615313,4047.96,0.00019,2]
[360206964,1746624630642,160.02,0.00018892,2]
[360206977,1746624631476,-207.4,0.00019716,2]
[360206978,1746624631486,-200.0,0.00019721,2]
[360206979,1746624631495,-250.0,0.00019721,2]
[360206980,1746624631505,-1000.0,0.00019728,2]
[360206981,1746624631514,-1000.0,0.00019728,2]
[360206982,1746624631525,-1000.0,0.00019729,2]
[360206983,1746624631535,-35.93780679,0.00019731,2]
[360206984,1746624631550,-114.06219321,0.00019731,2]
[360206985,1746624631559,-150.0,0.00019731,2]
[360206986,1746624631569,-150.0,0.00019733,2]
[360206987,1746624631579,-150.0,0.00019736,2]
[360206988,1746624631589,-150.0,0.00019738,2]
[360206989,1746624631598,-300.0,0.0001974,2]
[360206990,1746624631608,-1200.0,0.00019741,2]
[360206991,1746624631617,-300.0,0.00019741,2]
[360206992,1746624631627,-150.0,0.00019742,2]
[360206993,1746624631637,-1000.0,0.00019743,2]
[360206994,1746624631646,-150.0,0.00019744,2]
[360206995,1746624631656,-151.0,0.00019745,2]
[360206996,1746624631665,-151.0,0.00019745,2]
[360206997,1746624631674,-151.0,0.00019745,2]
[360206998,1746624631684,-668.65185757,0.00019745,2]
[360206999,1746624631693,-150.0,0.00019748,2]
[360207000,1746624631703,-150.0,0.00019749,2]
[360207001,1746624631714,-150.0,0.0001975,2]
[360207002,1746624631723,-150.0,0.00019751,2]
[360207003,1746624631732,-150.0,0.00019752,2]
[360207004,1746624631742,-150.0,0.00019752,2]
[360207005,1746624631751,-150.0,0.00019752,2]
[360207006,1746624631761,-1000.0,0.00019752,2]
[360207007,1746624631770,-216.5,0.00019754,2]
[360207008,1746624631780,-1000.0,0.00019757,2]
[360207009,1746624631790,-150.0,0.00019757,2]
[360207010,1746624631800,-150.0,0.00019759,2]
[360207011,1746624631809,-1000.0,0.00019763,2]
[360207012,1746624631819,-150.0,0.00019763,2]
[360207013,1746624631828,-46.35159921,0.00019768,2]
[360207014,1746624631840,-342.63599996,0.00019768,2]
[360207015,1746624631863,-611.01240083,0.00019768,2]
[360207016,1746624631872,-58.91709178,0.00019768,2]
[360207017,1746624631885,-91.08290822,0.00019768,2]
[360207018,1746624631895,-150.0,0.00019769,2]
[360207019,1746624631905,-150.0,0.00019769,2]
[360207020,1746624631915,-150.0,0.00019769,2]
[360207021,1746624631925,-150.0,0.00019771,2]
[360207022,1746624631935,-150.0,0.00019773,2]
[360207023,1746624631944,-150.0,0.00019773,2]
[360207024,1746624631954,-787.0,0.00019773,2]
[360207025,1746624631963,-150.0,0.00019775,2]
[360207026,1746624631973,-150.0,0.00019775,2]
[360207027,1746624631983,-170.51709158,0.00019777,2]
[360207028,1746624632004,-615.63182622,0.00019777,2]
[360207029,1746624632015,-213.8510822,0.00019777,2]
[360207031,1746624632025,-150.0,0.00019777,2]
[360207032,1746624632034,-150.0,0.0001978,2]
[360207034,1746624632043,-150.0,0.00019782,2]
[360207036,1746624632057,-150.0,0.00019782,2]
[360207038,1746624632067,-150.0,0.00019783,2]
[360207041,1746624632077,-150.0,0.00019783,2]
[360207042,1746624632086,-150.0,0.00019786,2]
[360207044,1746624632095,-752.45711664,0.00019788,2]
[360207056,1746624632324,-247.54288336,0.00019788,2]
[360207057,1746624632334,-1000.0,0.00019791,2]
[360207058,1746624632343,-342.7447023,0.00019793,2]
[360207059,1746624632353,-150.0,0.00019793,2]
[360207060,1746624632362,-68.91545668,0.00019799,2]
[360207061,1746624632393,-81.08454332,0.00019799,2]
[360207062,1746624632402,-900.0,0.000198,2]
[360207063,1746624632412,-1000.0,0.00019802,2]
[360207064,1746624632421,-1000.0,0.00019802,2]
[360207065,1746624632431,-150.0,0.00019802,2]
[360207066,1746624632440,-150.0,0.00019803,2]
[360207067,1746624632449,-150.0,0.00019807,2]
[360207068,1746624632458,-150.0,0.00019809,2]
[360207069,1746624632468,-1000.0,0.00019811,2]
[360207070,1746624632477,-150.0,0.00019813,2]
[360207071,1746624632487,-150.0,0.00019813,2]
[360207072,1746624632496,-1000.0,0.00019814,2]
[360207073,1746624632506,-150.0,0.00019817,2]
[360207074,1746624632515,-150.0,0.00019818,2]
[360207075,1746624632524,-1000.0,0.00019819,2]
[360207076,1746624632534,-798.0,0.00019822,2]
[360207077,1746624632543,-916.0,0.00019822,2]
[360207078,1746624632554,-551.0,0.00019822,2]
[360207079,1746624632563,-153.0,0.00019822,2]
[360207080,1746624632572,-879.0,0.00019822,2]
[360207081,1746624632581,-981.21251548,0.00019822,2]
[360207090,1746624637472,-150.0,0.00019737,2]
[360207091,1746624637482,-150.0,0.00019749,2]
[360207092,1746624637492,-640.27,0.00019762,2]
[360207093,1746624637503,-286.73,0.00019762,2]
[360207094,1746624637513,-150.0,0.00019784,2]
[360207095,1746624637523,-150.0,0.00019791,2]
[360207096,1746624637532,-150.0,0.00019801,2]
[360207097,1746624637542,-150.0,0.00019802,2]
[360207098,1746624637552,-121.66561349,0.00019803,2]
[360207099,1746624637563,-28.33438651,0.00019803,2]
[360207100,1746624637573,-150.0,0.00019809,2]
[360207101,1746624637583,-18.78748452,0.00019822,2]
[360207102,1746624637593,-150.0,0.00019822,2]
[360207103,1746624637602,-150.0,0.00019823,2]
[360207104,1746624637612,-150.0,0.00019825,2]
[360207105,1746624637622,-150.0,0.00019825,2]
[360207106,1746624637631,-150.0,0.00019827,2]
[360207107,1746624637640,-150.0,0.00019828,2]
[360207108,1746624637650,-150.0,0.00019828,2]
[360207109,1746624637659,-864.95687051,0.00019829,2]
[360207110,1746624637671,-135.04312949,0.00019829,2]
[360207111,1746624637680,-150.0,0.00019829,2]
[360207112,1746624637690,-150.0,0.00019831,2]
[360207113,1746624637700,-150.0,0.00019832,2]
[360207114,1746624637709,-150.0,0.00019832,2]
[360207115,1746624637719,-941.94128307,0.00019833,2]
[360207116,1746624637731,-58.05871693,0.00019833,2]
[360207117,1746624637741,-150.0,0.00019834,2]
[360207118,1746624637750,-66.26777439,0.00019835,2]
[360207119,1746624637762,-179.56317321,0.00019835,2]
[360207121,1746624637771,-815.8773,0.00019835,2]
[360207122,1746624637780,-6479.89915139,0.00019835,2]
[360207123,1746624637792,-10210.39784861,0.00019835,2]
[360207124,1746624637804,-4854.1401,0.00019836,2]
[360207125,1746624637813,-150.0,0.00019836,2]
[360207126,1746624637823,-150.0,0.00019838,2]
[360207127,1746624637832,-2000.0,0.00019838,2]
[360207128,1746624637842,-150.0,0.0001984,2]
[360207130,1746624637851,-1000.0,0.00019841,2]
[360207131,1746624637860,-150.0,0.00019841,2]
[360207132,1746624637870,-1000.0,0.00019842,2]
[360207133,1746624637879,-245.83094754,0.00019842,2]
[360207135,1746624637889,-150.0,0.00019843,2]
[360207136,1746624637898,-150.0,0.00019846,2]
[360207137,1746624637908,-150.0,0.00019847,2]
[360207138,1746624637917,-150.0,0.00019847,2]
[360207140,1746624637926,-150.0,0.00019848,2]
[360207141,1746624637936,-1000.0,0.00019849,2]
[360207144,1746624637945,-150.0,0.00019849,2]
[360207145,1746624637954,-245.83094754,0.00019849,2]
[360207148,1746624637964,-150.0,0.0001985,2]
[360207150,1746624637973,-150.0,0.0001985,2]
[360207152,1746624637982,-1000.0,0.00019852,2]
[360207155,1746624637991,-150.0,0.00019853,2]
[360207158,1746624638001,-1000.0,0.00019855,2]
[360207159,1746624638010,-1000.0,0.00019856,2]
[360207161,1746624638019,-245.83094754,0.00019857,2]
[360207163,1746624638028,-884.27590247,0.00019857,2]
[360207164,1746624638038,-1000.0,0.00019858,2]
[360207166,1746624638048,-150.0,0.00019858,2]
[360207168,1746624638057,-254.48905921,0.00019859,2]
[360207169,1746624638066,-150.0,0.00019862,2]
[360207170,1746624638075,-87.03547496,0.00019864,2]
[360207171,1746624638088,-158.79547258,0.00019864,2]
[360207172,1746624638097,-1000.0,0.00019865,2]
[360207173,1746624638106,-150.0,0.00019866,2]
[360207174,1746624638116,-150.0,0.00019866,2]
[360207175,1746624638125,-150.0,0.00019867,2]
[360207176,1746624638134,-150.0,0.0001987,2]
[360207177,1746624638144,-3037.61768306,0.0001987,2]
[360207178,1746624638153,-150.0,0.00019871,2]
[360207179,1746624638162,-168.12360691,0.00019871,2]
[360207180,1746624638171,-245.83094754,0.00019871,2]
[360207181,1746624638180,-150.0,0.00019872,2]
[360207182,1746624638189,-621.87828991,0.00019872,2]
[360207183,1746624638206,-150.0,0.00019848,2]
[360207184,1746624638215,-1337.13501009,0.00019872,2]
[360207185,1746624638224,-301.51768,0.00019873,2]
[360207186,1746624638233,-500.0,0.00019873,2]
[360207187,1746624638244,-500.0,0.00019873,2]
[360207188,1746624638254,-448.80620491,0.00019873,2]
[360207193,1746624639632,-150.0,0.00019738,2]
[360207194,1746624639642,-150.0,0.00019767,2]
[360207195,1746624639652,-150.0,0.00019784,2]
[360207196,1746624639661,-150.0,0.00019793,2]
[360207197,1746624639671,-150.0,0.00019798,2]
[360207198,1746624639680,-150.0,0.00019805,2]
[360207199,1746624639689,-150.0,0.00019822,2]
[360207200,1746624639698,-150.0,0.00019837,2]
[360207201,1746624639707,-150.0,0.0001984,2]
[360207202,1746624639716,-150.0,0.00019842,2]
[360207203,1746624639726,-150.0,0.00019848,2]
[360207204,1746624639736,-150.0,0.00019855,2]
[360207205,1746624639745,-150.0,0.00019862,2]
[360207206,1746624639754,-150.0,0.00019863,2]
[360207207,1746624639764,-150.0,0.00019864,2]
[360207208,1746624639773,-51.19379509,0.00019873,2]
[360207209,1746624639783,-500.0,0.00019873,2]
[360207210,1746624639792,-500.0,0.00019873,2]
[360207211,1746624639801,-500.40684714,0.00019873,2]
[360207212,1746624639810,-500.0,0.00019873,2]
[360207213,1746624639821,-500.0,0.00019873,2]
[360207214,1746624639830,-500.0,0.00019873,2]
[360207215,1746624639841,-500.0,0.00019873,2]
[360207216,1746624639851,-500.0,0.00019873,2]
[360207217,1746624639860,-1000.0,0.00019874,2]
[360207218,1746624639869,-150.0,0.00019874,2]
[360207219,1746624639879,-150.0,0.00019876,2]
[360207220,1746624639888,-150.0,0.00019876,2]
[360207221,1746624639901,-150.0,0.00019878,2]
[360207222,1746624639911,-150.0,0.00019878,2]
[360207223,1746624639922,-150.0,0.00019878,2]
[360207224,1746624639931,-245.83094754,0.00019878,2]
[360207225,1746624639941,-1000.0,0.00019879,2]
[360207226,1746624639951,-150.0,0.00019879,2]
[360207227,1746624639960,-150.0,0.0001988,2]
[360207228,1746624639969,-1000.0,0.00019881,2]
[360207229,1746624639978,-1498.02246388,0.00019882,2]
[360207230,1746624639987,-150.0,0.00019883,2]
[360207231,1746624639998,-150.0,0.00019883,2]
[360207232,1746624640007,-150.0,0.00019884,2]
[360207233,1746624640016,-1000.0,0.00019884,2]
[360207234,1746624640026,-1498.02246388,0.00019884,2]
[360207235,1746624640035,-150.0,0.00019884,2]
[360207236,1746624640045,-150.0,0.00019885,2]
[360207237,1746624640055,-150.0,0.00019885,2]
[360207238,1746624640066,-245.83094754,0.00019886,2]
[360207239,1746624640077,-150.0,0.00019886,2]
[360207240,1746624640087,-1498.02246388,0.00019886,2]
[360207241,1746624640098,-150.0,0.00019886,2]
[360207242,1746624640108,-150.0,0.00019888,2]
[360207243,1746624640119,-1498.02246388,0.00019888,2]
[360207244,1746624640130,-150.0,0.00019888,2]
[360207245,1746624640140,-8877.19694691,0.00019889,2]
[360207246,1746624640150,-1498.02246388,0.0001989,2]
[360207247,1746624640160,-150.0,0.00019891,2]
[360207248,1746624640170,-342.7447023,0.00019891,2]
[360207249,1746624640180,-150.0,0.00019892,2]
[360207250,1746624640190,-1498.02246388,0.00019892,2]
[360207251,1746624640200,-245.83094754,0.00019893,2]
[360207252,1746624640211,-1000.0,0.00019893,2]
[360207253,1746624640222,-150.0,0.00019894,2]
[360207254,1746624640233,-1498.02246388,0.00019894,2]
[360207255,1746624640243,-1000.0,0.00019896,2]
[360207256,1746624640254,-161.407,0.00019896,2]
[360207257,1746624640264,-3552.211,0.00019896,2]
[360207258,1746624640274,-150.0,0.00019896,2]
[360207259,1746624640283,-1498.02246388,0.00019896,2]
[360207260,1746624640293,-150.0,0.00019896,2]
[360207261,1746624640303,-174.26042272,0.00019898,2]
[360207262,1746624640312,-487.86310448,0.00019898,2]
[360207263,1746624640321,-166.55221696,0.00019898,2]
[360207264,1746624640330,-150.0,0.00019898,2]
[360207265,1746624640341,-1498.02246388,0.00019898,2]
[360207266,1746624640350,-245.83094754,0.000199,2]
[360207268,1746624640360,-4753.60179229,0.000199,3]
[360207270,1746624640369,-7106.05696476,0.000199,2]
[360207271,1746624640378,-4660.40803603,0.000199,2]
[360207273,1746624640387,-194.77304099,0.000199,3]
[360207275,1746624640398,-1498.02246388,0.000199,2]
[360207276,1746624640410,-199.88314134,0.000199,2]
[360207277,1746624640420,-462.6612516,0.000199,2]
[360207278,1746624640430,-6641.14773837,0.000199,2]
[360207279,1746624640439,-150.0,0.00019901,2]
[360207280,1746624640450,-150.0,0.00019901,2]
[360207281,1746624640461,-1000.0,0.00019903,2]
[360207282,1746624640470,-150.0,0.00019903,2]
[360207283,1746624640482,-1000.0,0.00019904,2]
[360207284,1746624640491,-150.0,0.00019905,2]
[360207285,1746624640502,-1000.0,0.00019905,2]
[360207286,1746624640511,-150.0,0.00019905,2]
[360207287,1746624640521,-150.0,0.00019905,2]
[360207288,1746624640531,-150.0,0.00019906,2]
[360207289,1746624640540,-150.0,0.00019906,2]
[360207290,1746624640551,-150.0,0.00019907,2]
[360207291,1746624640764,-1000.0,0.00019908,2]
[360207292,1746624640775,-1000.0,0.0001991,2]
[360207293,1746624640785,-209.1473262,0.0001991,2]
[360207294,1746624640795,-1000.0,0.00019911,2]
[360207295,1746624640810,-150.0,0.00019912,2]
[360207296,1746624640820,-150.0,0.00019913,2]
[360207297,1746624640830,-1000.0,0.00019914,2]
[360207298,1746624640839,-150.0,0.00019915,2]
[360207299,1746624640849,-1000.0,0.00019916,2]
[360207300,1746624640859,-150.0,0.00019916,2]
[360207301,1746624640868,-150.0,0.00019916,2]
[360207302,1746624640878,-150.0,0.00019916,2]
[360207303,1746624640887,-1000.0,0.00019918,2]
[360207304,1746624640897,-150.0,0.00019918,2]
[360207305,1746624640907,-150.0,0.00019919,2]
[360207306,1746624640917,-150.0,0.00019919,2]
[360207307,1746624640926,-12500.0,0.0001992,2]
[360207308,1746624640935,-150.0,0.00019921,2]
[360207309,1746624640946,-150.0,0.00019921,2]
[360207310,1746624640956,-231.93343165,0.00019921,2]
[360207311,1746624640965,-150.0,0.00019923,2]
[360207312,1746624640975,-150.0,0.00019924,2]
[360207313,1746624640985,-150.0,0.00019925,2]
[360207314,1746624640994,-1000.0,0.00019928,2]
[360207315,1746624641004,-12500.0,0.00019929,2]
[360207316,1746624641014,-150.0,0.0001993,2]
[360207317,1746624641024,-150.0,0.0001993,2]